[Event "Titled Tuesday Blitz May 9 Early 2023"]
[White "Pinto, Daniel"]
[Black "Bruedigam, Martin"]
[WhiteFideId "3303144"]
[BlackFideId "24608033"]
[WhiteElo "2145"]
[BlackElo "2331"]
[Result "1-0"]
[Round "10"]
[TimeControl "180+2"]
[Date "2023.05.09"]
[WhiteClock "0:00:12"]
[BlackClock "0:00:03"]

1. e4 {[%clk 0:03:00]}  c6 {[%clk 0:02:59]} 2. d4 {[%clk 0:02:58]}  d5 {[%clk 0:02:59]} 3. e5 {[%clk 0:02:59]}  Bf5 {[%clk 0:02:58]} 4. h4 {[%clk 0:03:00]}  Qc7 {[%clk 0:02:58]} 5. Ne2 {[%clk 0:02:48]}  e6 {[%clk 0:02:56]} 6. Ng3 {[%clk 0:02:48]}  Ne7 {[%clk 0:02:55]} 7. Be3 {[%clk 0:02:34]}  h6 {[%clk 0:02:54]} 8. Nc3 {[%clk 0:02:26]}  Nd7 {[%clk 0:02:50]} 9. Bd3 {[%clk 0:02:22]}  Bxd3 {[%clk 0:02:48]} 10. Qxd3 {[%clk 0:02:22]}  h5 {[%clk 0:02:47]} 11. O-O {[%clk 0:02:15]}  g6 {[%clk 0:02:47]} 12. Bg5 {[%clk 0:02:13]}  Qb6 {[%clk 0:02:43]} 13. b4 {[%clk 0:02:05]}  Bh6 {[%clk 0:02:22]} 14. Bxe7 {[%clk 0:01:13]}  Kxe7 {[%clk 0:02:22]} 15. f4 {[%clk 0:01:13]}  Bf8 {[%clk 0:01:56]} 16. Rfb1 {[%clk 0:00:37]}  Ke8 {[%clk 0:01:46]} 17. Nge2 {[%clk 0:00:20]}  Be7 {[%clk 0:01:45]} 18. g3 {[%clk 0:00:19]}  Kf8 {[%clk 0:01:45]} 19. Kf2 {[%clk 0:00:20]}  Kg7 {[%clk 0:01:45]} 20. Ng1 {[%clk 0:00:20]}  Qc7 {[%clk 0:01:41]} 21. Kg2 {[%clk 0:00:19]}  a5 {[%clk 0:01:33]} 22. b5 {[%clk 0:00:03]}  Nb6 {[%clk 0:01:31]} 23. Nf3 {[%clk 0:00:03]}  Nc4 {[%clk 0:01:30]} 24. a4 {[%clk 0:00:04]}  c5 {[%clk 0:01:27]} 25. dxc5 {[%clk 0:00:04]}  Bxc5 {[%clk 0:01:23]} 26. Nd1 {[%clk 0:00:04]}  b6 {[%clk 0:01:18]} 27. Rb3 {[%clk 0:00:04]}  Rac8 {[%clk 0:01:18]} 28. Nd2 {[%clk 0:00:05]}  Bb4 {[%clk 0:01:03]} 29. Nf3 {[%clk 0:00:05]}  Bc5 {[%clk 0:00:57]} 30. Ra2 {[%clk 0:00:05]}  Qb7 {[%clk 0:00:48]} 31. Nd4 {[%clk 0:00:05]}  Bxd4 {[%clk 0:00:46]} 32. Qxd4 {[%clk 0:00:06]}  Rc5 {[%clk 0:00:44]} 33. Rd3 {[%clk 0:00:06]}  Rhc8 {[%clk 0:00:44]} 34. c3 {[%clk 0:00:07]}  Qe7 {[%clk 0:00:41]} 35. Kh3 {[%clk 0:00:06]}  f6 {[%clk 0:00:34]} 36. Re2 {[%clk 0:00:05]}  fxe5 {[%clk 0:00:33]} 37. fxe5 {[%clk 0:00:06]}  Rf8 {[%clk 0:00:33]} 38. Rf2 {[%clk 0:00:05]}  Rxf2 {[%clk 0:00:20]} 39. Nxf2 {[%clk 0:00:05]}  Rc8 {[%clk 0:00:21]} 40. Rf3 {[%clk 0:00:04]}  Rf8 {[%clk 0:00:16]} 41. Rf4 {[%clk 0:00:04]}  Rf5 {[%clk 0:00:14]} 42. Nd3 {[%clk 0:00:03]}  Qa3 {[%clk 0:00:12]} 43. Rxf5 {[%clk 0:00:03]}  gxf5 {[%clk 0:00:13]} 44. Qf4 {[%clk 0:00:04]}  Qe7 {[%clk 0:00:11]} 45. Qd4 {[%clk 0:00:04]}  Qc7 {[%clk 0:00:10]} 46. Qf4 {[%clk 0:00:04]}  Qd8 {[%clk 0:00:09]} 47. Qd4 {[%clk 0:00:03]}  Kf7 {[%clk 0:00:09]} 48. Qf4 {[%clk 0:00:03]}  Qh8 {[%clk 0:00:08]} 49. Qg5 {[%clk 0:00:03]}  Nxe5 {[%clk 0:00:07]} 50. Nxe5+ {[%clk 0:00:03]}  Qxe5 {[%clk 0:00:07]} 51. Qxh5+ {[%clk 0:00:03]}  Ke7 {[%clk 0:00:08]} 52. Qh7+ {[%clk 0:00:04]}  Kd6 {[%clk 0:00:09]} 53. Qb7 {[%clk 0:00:04]}  Qxc3 {[%clk 0:00:08]} 54. Qxb6+ {[%clk 0:00:05]}  Ke5 {[%clk 0:00:09]} 55. Qb8+ {[%clk 0:00:05]}  Ke4 {[%clk 0:00:08]} 56. Qf4+ {[%clk 0:00:05]}  Kd3 {[%clk 0:00:07]} 57. Qf3+ {[%clk 0:00:06]}  Kc4 {[%clk 0:00:07]} 58. Qxc3+ {[%clk 0:00:07]}  Kxc3 {[%clk 0:00:07]} 59. h5 {[%clk 0:00:08]}  d4 {[%clk 0:00:04]} 60. h6 {[%clk 0:00:09]}  d3 {[%clk 0:00:05]} 61. h7 {[%clk 0:00:09]}  d2 {[%clk 0:00:06]} 62. h8=Q+ {[%clk 0:00:10]}  Kc2 {[%clk 0:00:06]} 63. Qc8+ {[%clk 0:00:10]}  Kb2 {[%clk 0:00:05]} 64. Qd7 {[%clk 0:00:10]}  Kc1 {[%clk 0:00:05]} 65. Qc6+ {[%clk 0:00:10]}  Kb1 {[%clk 0:00:05]} 66. Qd6 {[%clk 0:00:11]}  Kc1 {[%clk 0:00:05]} 67. Qc5+ {[%clk 0:00:11]}  Kb1 {[%clk 0:00:05]} 68. Qd4 {[%clk 0:00:12]}  Kc1 {[%clk 0:00:06]} 69. Qc3+ {[%clk 0:00:12]}  Kd1 {[%clk 0:00:06]} 70. Qxa5 {[%clk 0:00:12]}  e5 {[%clk 0:00:06]} 71. Kg2 {[%clk 0:00:11]}  e4 {[%clk 0:00:03]} 72. Kf2 {[%clk 0:00:12]} 1-0


[Site "https://www.chess.com"]

[Event "Titled Tuesday Blitz May 9 Early 2023"]
[White "Vlassov, Nikolai"]
[Black "Rozman, Levy"]
[WhiteFideId "4103360"]
[BlackFideId "2039877"]
[WhiteElo "2324"]
[BlackElo "2376"]
[Result "1/2-1/2"]
[Round "10"]
[TimeControl "180+2"]
[Date "2023.05.09"]
[WhiteClock "0:00:06"]
[BlackClock "0:00:07"]

1. e4 {[%clk 0:03:00]}  d5 {[%clk 0:02:58]} 2. exd5 {[%clk 0:03:00]}  Nf6 {[%clk 0:02:57]} 3. Bb5+ {[%clk 0:02:59]}  Nbd7 {[%clk 0:02:57]} 4. c4 {[%clk 0:02:59]}  a6 {[%clk 0:02:56]} 5. Bxd7+ {[%clk 0:02:59]}  Qxd7 {[%clk 0:02:57]} 6. Nf3 {[%clk 0:02:59]}  b5 {[%clk 0:02:55]} 7. d3 {[%clk 0:02:58]}  e6 {[%clk 0:02:55]} 8. Qe2 {[%clk 0:02:58]}  Be7 {[%clk 0:02:53]} 9. dxe6 {[%clk 0:02:58]}  fxe6 {[%clk 0:02:49]} 10. O-O {[%clk 0:02:57]}  O-O {[%clk 0:02:48]} 11. Nc3 {[%clk 0:02:54]}  Bb7 {[%clk 0:02:45]} 12. Ne5 {[%clk 0:02:51]}  Qe8 {[%clk 0:02:44]} 13. Bf4 {[%clk 0:02:46]}  Bd6 {[%clk 0:02:40]} 14. Rfe1 {[%clk 0:02:37]}  Nh5 {[%clk 0:02:37]} 15. Bg3 {[%clk 0:02:33]}  Nf4 {[%clk 0:02:34]} 16. Bxf4 {[%clk 0:02:30]}  Rxf4 {[%clk 0:02:33]} 17. Rad1 {[%clk 0:02:10]}  b4 {[%clk 0:02:24]} 18. Nb1 {[%clk 0:02:06]}  Bc5 {[%clk 0:02:07]} 19. Ng4 {[%clk 0:01:44]}  Kh8 {[%clk 0:01:48]} 20. Nd2 {[%clk 0:01:41]}  Qg6 {[%clk 0:01:34]} 21. Ne3 {[%clk 0:01:34]}  Raf8 {[%clk 0:01:33]} 22. Rf1 {[%clk 0:01:27]}  h5 {[%clk 0:01:17]} 23. Ne4 {[%clk 0:01:19]}  Bd4 {[%clk 0:01:13]} 24. Kh1 {[%clk 0:00:43]}  Rh4 {[%clk 0:00:36]} 25. Ng3 {[%clk 0:00:33]}  Qg5 {[%clk 0:00:33]} 26. Nc2 {[%clk 0:00:24]}  Be5 {[%clk 0:00:27]} 27. Kg1 {[%clk 0:00:13]}  Rg4 {[%clk 0:00:24]} 28. Ne3 {[%clk 0:00:12]}  Rh4 {[%clk 0:00:15]} 29. d4 {[%clk 0:00:10]}  Bxd4 {[%clk 0:00:12]} 30. a3 {[%clk 0:00:06]}  b3 {[%clk 0:00:12]} 31. Rd3 {[%clk 0:00:06]}  c5 {[%clk 0:00:08]} 32. Rxb3 {[%clk 0:00:06]}  Ba8 {[%clk 0:00:08]} 33. Rb6 {[%clk 0:00:06]}  Qg6 {[%clk 0:00:03]} 34. Rxa6 {[%clk 0:00:06]}  Be4 {[%clk 0:00:03]} 35. Nxe4 {[%clk 0:00:04]}  Rxe4 {[%clk 0:00:04]} 36. Qd3 {[%clk 0:00:02]}  Rff4 {[%clk 0:00:01]} 37. Ra8+ {[%clk 0:00:02]}  Kh7 {[%clk 0:00:01]} 38. b4 {[%clk 0:00:03]}  Bxe3 {[%clk 0:00:01]} 39. fxe3 {[%clk 0:00:02]}  Rg4 {[%clk 0:00:02]} 40. Qe2 {[%clk 0:00:01]}  h4 {[%clk 0:00:01]} 41. Qf3 {[%clk 0:00:01]}  h3 {[%clk 0:00:01]} 42. Qxh3+ {[%clk 0:00:01]}  Rh4 {[%clk 0:00:02]} 43. Qf3 {[%clk 0:00:01]}  Reg4 {[%clk 0:00:03]} 44. Rf2 {[%clk 0:00:01]}  Qb1+ {[%clk 0:00:02]} 45. Rf1 {[%clk 0:00:02]}  Qd3 {[%clk 0:00:02]} 46. g3 {[%clk 0:00:02]}  Qd2 {[%clk 0:00:02]} 47. Rf2 {[%clk 0:00:02]}  Qd1+ {[%clk 0:00:02]} 48. Kg2 {[%clk 0:00:03]}  Qxf3+ {[%clk 0:00:01]} 49. Rxf3 {[%clk 0:00:03]}  Rh6 {[%clk 0:00:01]} 50. bxc5 {[%clk 0:00:03]}  Rxc4 {[%clk 0:00:01]} 51. Rc8 {[%clk 0:00:03]}  Rc2+ {[%clk 0:00:02]} 52. Rf2 {[%clk 0:00:03]}  Rxh2+ {[%clk 0:00:02]} 53. Kxh2 {[%clk 0:00:02]}  Rxf2+ {[%clk 0:00:02]} 54. Kh3 {[%clk 0:00:03]}  Ra2 {[%clk 0:00:03]} 55. c6 {[%clk 0:00:04]}  Rxa3 {[%clk 0:00:03]} 56. c7 {[%clk 0:00:04]}  Rc3 {[%clk 0:00:04]} 57. Kg4 {[%clk 0:00:04]}  Kg6 {[%clk 0:00:04]} 58. Kf4 {[%clk 0:00:05]}  Rc5 {[%clk 0:00:05]} 59. Ke4 {[%clk 0:00:05]}  Kf6 {[%clk 0:00:06]} 60. Kd4 {[%clk 0:00:05]}  Rc1 {[%clk 0:00:06]} 61. e4 {[%clk 0:00:05]}  Ke7 {[%clk 0:00:06]} 62. e5 {[%clk 0:00:04]}  Kd7 {[%clk 0:00:07]} 63. Rg8 {[%clk 0:00:04]}  Kxc7 {[%clk 0:00:07]} 64. Rxg7+ {[%clk 0:00:04]}  Kc6 {[%clk 0:00:08]} 65. Ke4 {[%clk 0:00:05]}  Rc4+ {[%clk 0:00:08]} 66. Kf3 {[%clk 0:00:05]}  Kd5 {[%clk 0:00:08]} 67. Rg5 {[%clk 0:00:05]}  Rc3+ {[%clk 0:00:09]} 68. Kf4 {[%clk 0:00:05]}  Rc8 {[%clk 0:00:09]} 69. Rg6 {[%clk 0:00:05]}  Rf8+ {[%clk 0:00:10]} 70. Rf6 {[%clk 0:00:06]}  Ra8 {[%clk 0:00:09]} 71. g4 {[%clk 0:00:06]}  Ra4+ {[%clk 0:00:10]} 72. Kg5 {[%clk 0:00:06]}  Kxe5 {[%clk 0:00:10]} 73. Rf8 {[%clk 0:00:06]}  Ra1 {[%clk 0:00:10]} 74. Rd8 {[%clk 0:00:07]}  Rg1 {[%clk 0:00:09]} 75. Kh5 {[%clk 0:00:07]}  Rh1+ {[%clk 0:00:10]} 76. Kg6 {[%clk 0:00:07]}  Kf4 {[%clk 0:00:09]} 77. g5 {[%clk 0:00:07]}  Rg1 {[%clk 0:00:10]} 78. Rf8+ {[%clk 0:00:07]}  Ke4 {[%clk 0:00:10]} 79. Kf6 {[%clk 0:00:07]}  Rf1+ {[%clk 0:00:11]} 80. Ke7 {[%clk 0:00:05]}  Rxf8 {[%clk 0:00:11]} 81. Kxf8 {[%clk 0:00:05]}  Kf5 {[%clk 0:00:11]} 82. Kf7 {[%clk 0:00:06]}  Kxg5 {[%clk 0:00:07]} 83. Kxe6 {[%clk 0:00:06]} 1/2-1/2


[Site "https://www.chess.com"]

[Event "Titled Tuesday Blitz May 9 Early 2023"]
[White "Janaszak, Dawid"]
[Black "Csonka, Balazs"]
[WhiteFideId "1119206"]
[BlackFideId "742910"]
[WhiteElo "2220"]
[BlackElo "2404"]
[Result "0-1"]
[Round "10"]
[TimeControl "180+2"]
[Date "2023.05.09"]
[WhiteClock "0:00:00"]
[BlackClock "0:00:05"]

1. e4 {[%clk 0:02:53]}  e5 {[%clk 0:02:55]} 2. Nf3 {[%clk 0:02:53]}  Nc6 {[%clk 0:02:54]} 3. d4 {[%clk 0:02:54]}  exd4 {[%clk 0:02:53]} 4. Nxd4 {[%clk 0:02:55]}  Nf6 {[%clk 0:02:53]} 5. Nxc6 {[%clk 0:02:55]}  bxc6 {[%clk 0:02:53]} 6. e5 {[%clk 0:02:56]}  Qe7 {[%clk 0:02:53]} 7. Qe2 {[%clk 0:02:56]}  Nd5 {[%clk 0:02:54]} 8. h4 {[%clk 0:02:57]}  Qe6 {[%clk 0:02:45]} 9. Nd2 {[%clk 0:02:57]}  a5 {[%clk 0:02:42]} 10. Nf3 {[%clk 0:02:52]}  Ba6 {[%clk 0:02:25]} 11. c4 {[%clk 0:02:52]}  Nb6 {[%clk 0:02:25]} 12. b3 {[%clk 0:02:30]}  a4 {[%clk 0:02:23]} 13. g3 {[%clk 0:02:17]}  Bb4+ {[%clk 0:01:55]} 14. Bd2 {[%clk 0:02:10]}  c5 {[%clk 0:01:43]} 15. Bg2 {[%clk 0:01:47]}  O-O {[%clk 0:01:24]} 16. O-O {[%clk 0:01:37]}  d5 {[%clk 0:01:18]} 17. Ng5 {[%clk 0:01:28]}  Qe7 {[%clk 0:01:18]} 18. Qd3 {[%clk 0:01:12]}  g6 {[%clk 0:01:15]} 19. Bxb4 {[%clk 0:01:05]}  cxb4 {[%clk 0:01:16]} 20. Rac1 {[%clk 0:01:05]}  Rad8 {[%clk 0:01:09]} 21. Qe2 {[%clk 0:00:40]}  axb3 {[%clk 0:01:01]} 22. axb3 {[%clk 0:00:39]}  dxc4 {[%clk 0:01:01]} 23. bxc4 {[%clk 0:00:39]}  Rd4 {[%clk 0:01:00]} 24. Rfe1 {[%clk 0:00:32]}  Bxc4 {[%clk 0:00:56]} 25. Qe3 {[%clk 0:00:29]}  c5 {[%clk 0:00:52]} 26. Kh2 {[%clk 0:00:21]}  Nd5 {[%clk 0:00:40]} 27. Qf3 {[%clk 0:00:19]}  Kg7 {[%clk 0:00:34]} 28. Rxc4 {[%clk 0:00:18]}  Rxc4 {[%clk 0:00:31]} 29. Qxd5 {[%clk 0:00:19]}  Rd4 {[%clk 0:00:32]} 30. Qc6 {[%clk 0:00:19]}  b3 {[%clk 0:00:21]} 31. Nf3 {[%clk 0:00:19]}  Rb4 {[%clk 0:00:21]} 32. e6 {[%clk 0:00:19]}  b2 {[%clk 0:00:19]} 33. Nd2 {[%clk 0:00:18]}  Rfb8 {[%clk 0:00:16]} 34. Nb1 {[%clk 0:00:14]}  R8b6 {[%clk 0:00:14]} 35. Qc8 {[%clk 0:00:14]}  Rxe6 {[%clk 0:00:14]} 36. Rd1 {[%clk 0:00:11]}  Rd4 {[%clk 0:00:08]} 37. Rf1 {[%clk 0:00:09]}  Re2 {[%clk 0:00:07]} 38. Nc3 {[%clk 0:00:09]}  Rc2 {[%clk 0:00:07]} 39. Nd5 {[%clk 0:00:08]}  Rxd5 {[%clk 0:00:05]} 40. Bxd5 {[%clk 0:00:08]}  Rc1 {[%clk 0:00:06]} 41. Qb8 {[%clk 0:00:03]}  Rxf1 {[%clk 0:00:04]} 42. Qxb2+ {[%clk 0:00:00]}  Qf6 {[%clk 0:00:05]} 0-1


[Site "https://www.chess.com"]

[Event "Titled Tuesday Blitz May 9 Early 2023"]
[White "Gurevich, Dmitry"]
[Black "Golubev, Mikhail"]
[WhiteFideId "2000407"]
[BlackFideId "14100983"]
[WhiteElo "2506"]
[BlackElo "2374"]
[Result "1-0"]
[Round "10"]
[TimeControl "180+2"]
[Date "2023.05.09"]
[WhiteClock "0:00:37"]
[BlackClock "0:01:14"]

1. d4 {[%clk 0:02:59]}  Nf6 {[%clk 0:03:00]} 2. c4 {[%clk 0:02:58]}  g6 {[%clk 0:03:00]} 3. Nc3 {[%clk 0:02:57]}  Bg7 {[%clk 0:03:00]} 4. e4 {[%clk 0:02:57]}  d6 {[%clk 0:03:01]} 5. Nf3 {[%clk 0:02:58]}  O-O {[%clk 0:03:01]} 6. Be2 {[%clk 0:02:58]}  e5 {[%clk 0:03:01]} 7. O-O {[%clk 0:02:58]}  h6 {[%clk 0:03:01]} 8. d5 {[%clk 0:02:52]}  a5 {[%clk 0:02:52]} 9. Ne1 {[%clk 0:02:49]}  Na6 {[%clk 0:02:47]} 10. Be3 {[%clk 0:02:48]}  Nc5 {[%clk 0:02:42]} 11. Qc2 {[%clk 0:02:38]}  Ng4 {[%clk 0:02:42]} 12. Bxg4 {[%clk 0:02:34]}  Bxg4 {[%clk 0:02:41]} 13. b3 {[%clk 0:02:30]}  Bd7 {[%clk 0:02:40]} 14. Rb1 {[%clk 0:02:27]}  f5 {[%clk 0:02:37]} 15. f3 {[%clk 0:02:27]}  f4 {[%clk 0:02:36]} 16. Bf2 {[%clk 0:02:24]}  g5 {[%clk 0:02:36]} 17. a3 {[%clk 0:02:20]}  g4 {[%clk 0:02:26]} 18. fxg4 {[%clk 0:02:18]}  Bxg4 {[%clk 0:02:20]} 19. b4 {[%clk 0:02:18]}  axb4 {[%clk 0:02:20]} 20. axb4 {[%clk 0:02:18]}  Nd7 {[%clk 0:02:20]} 21. h3 {[%clk 0:02:11]}  Bh5 {[%clk 0:02:19]} 22. c5 {[%clk 0:02:02]}  Nf6 {[%clk 0:02:17]} 23. Qd3 {[%clk 0:01:57]}  Rf7 {[%clk 0:02:10]} 24. Nf3 {[%clk 0:01:56]}  Bg6 {[%clk 0:02:11]} 25. Rfe1 {[%clk 0:01:52]}  Kh7 {[%clk 0:02:02]} 26. c6 {[%clk 0:01:52]}  b6 {[%clk 0:02:01]} 27. Ra1 {[%clk 0:01:50]}  Rxa1 {[%clk 0:01:56]} 28. Rxa1 {[%clk 0:01:49]}  Nh5 {[%clk 0:01:47]} 29. Ra7 {[%clk 0:01:40]}  Ng3 {[%clk 0:01:44]} 30. b5 {[%clk 0:01:10]}  h5 {[%clk 0:01:43]} 31. Ra4 {[%clk 0:01:05]}  Bh6 {[%clk 0:01:40]} 32. Qc2 {[%clk 0:00:59]}  Rg7 {[%clk 0:01:36]} 33. Qa2 {[%clk 0:00:58]}  Nxe4 {[%clk 0:01:29]} 34. Nxe4 {[%clk 0:00:43]}  Bf5 {[%clk 0:01:20]} 35. Kf1 {[%clk 0:00:38]}  Qe8 {[%clk 0:01:14]} 36. Nf6+ {[%clk 0:00:37]} 1-0


[Site "https://www.chess.com"]

[Event "Titled Tuesday Blitz May 9 Early 2023"]
[White "Korelskiy, Egor"]
[Black "Guerra Tulcan, Lenin"]
[WhiteFideId "34329064"]
[BlackFideId "3601382"]
[WhiteElo "2156"]
[BlackElo "2368"]
[Result "1-0"]
[Round "10"]
[TimeControl "180+2"]
[Date "2023.05.09"]
[WhiteClock "0:01:04"]
[BlackClock "0:00:14"]

1. e4 {[%clk 0:02:58]}  c5 {[%clk 0:03:00]} 2. Nf3 {[%clk 0:02:58]}  e6 {[%clk 0:03:00]} 3. d4 {[%clk 0:02:56]}  cxd4 {[%clk 0:03:00]} 4. Nxd4 {[%clk 0:02:57]}  Nc6 {[%clk 0:03:00]} 5. Nc3 {[%clk 0:02:57]}  Qc7 {[%clk 0:03:00]} 6. Be3 {[%clk 0:02:51]}  a6 {[%clk 0:02:57]} 7. a3 {[%clk 0:02:50]}  Nf6 {[%clk 0:02:56]} 8. f3 {[%clk 0:02:49]}  b5 {[%clk 0:02:56]} 9. Be2 {[%clk 0:02:49]}  Bb7 {[%clk 0:02:56]} 10. O-O {[%clk 0:02:46]}  Be7 {[%clk 0:02:56]} 11. Qd2 {[%clk 0:02:46]}  O-O {[%clk 0:02:56]} 12. Rad1 {[%clk 0:02:43]}  Rac8 {[%clk 0:02:52]} 13. Rfe1 {[%clk 0:02:20]}  d5 {[%clk 0:02:46]} 14. exd5 {[%clk 0:02:13]}  Nxd4 {[%clk 0:02:46]} 15. Bxd4 {[%clk 0:02:12]}  Nxd5 {[%clk 0:02:45]} 16. Nxd5 {[%clk 0:02:11]}  Bxd5 {[%clk 0:02:44]} 17. c3 {[%clk 0:02:11]}  Rfd8 {[%clk 0:02:35]} 18. Qe3 {[%clk 0:02:07]}  Bd6 {[%clk 0:02:29]} 19. Bb6 {[%clk 0:02:06]}  Qxb6 {[%clk 0:02:10]} 20. Qxb6 {[%clk 0:02:03]}  Bc5+ {[%clk 0:02:10]} 21. Qxc5 {[%clk 0:02:04]}  Rxc5 {[%clk 0:02:10]} 22. Rd4 {[%clk 0:02:04]}  Kf8 {[%clk 0:02:06]} 23. Red1 {[%clk 0:02:02]}  Rb8 {[%clk 0:02:04]} 24. Kf2 {[%clk 0:02:02]}  a5 {[%clk 0:02:04]} 25. R1d2 {[%clk 0:01:59]}  Ke7 {[%clk 0:01:56]} 26. h4 {[%clk 0:01:57]}  g6 {[%clk 0:01:43]} 27. Ke3 {[%clk 0:01:53]}  h5 {[%clk 0:01:39]} 28. g3 {[%clk 0:01:51]}  Rd8 {[%clk 0:01:28]} 29. Kf2 {[%clk 0:01:36]}  e5 {[%clk 0:01:15]} 30. R4d3 {[%clk 0:01:35]}  Ke6 {[%clk 0:01:15]} 31. Re3 {[%clk 0:01:33]}  f5 {[%clk 0:01:07]} 32. b4 {[%clk 0:01:17]}  axb4 {[%clk 0:01:04]} 33. axb4 {[%clk 0:01:17]}  Rc7 {[%clk 0:00:56]} 34. Bxb5 {[%clk 0:01:16]}  Rdc8 {[%clk 0:00:51]} 35. Red3 {[%clk 0:01:13]}  Bxf3 {[%clk 0:00:25]} 36. Rxf3 {[%clk 0:01:10]}  Rxc3 {[%clk 0:00:25]} 37. Bd7+ {[%clk 0:01:10]}  Ke7 {[%clk 0:00:22]} 38. Bxc8 {[%clk 0:01:09]}  Rxc8 {[%clk 0:00:23]} 39. Rfd3 {[%clk 0:01:09]}  e4 {[%clk 0:00:22]} 40. Rd7+ {[%clk 0:01:09]}  Ke6 {[%clk 0:00:22]} 41. R7d6+ {[%clk 0:01:10]}  Kf7 {[%clk 0:00:21]} 42. b5 {[%clk 0:01:09]}  Rc3 {[%clk 0:00:21]} 43. Rb2 {[%clk 0:01:08]}  e3+ {[%clk 0:00:19]} 44. Ke2 {[%clk 0:01:08]}  g5 {[%clk 0:00:18]} 45. b6 {[%clk 0:01:06]}  f4 {[%clk 0:00:14]} 46. b7 {[%clk 0:01:04]} 1-0


[Site "https://www.chess.com"]

[Event "Titled Tuesday Blitz May 9 Early 2023"]
[White "Sanhueza, Cristian"]
[Black "Ambartsumova, Karina"]
[WhiteFideId "116815"]
[BlackFideId "4166299"]
[WhiteElo "2174"]
[BlackElo "2240"]
[Result "1-0"]
[Round "10"]
[TimeControl "180+2"]
[Date "2023.05.09"]
[WhiteClock "0:00:06"]
[BlackClock "0:00:12"]

1. e4 {[%clk 0:03:00]}  e5 {[%clk 0:02:59]} 2. Nf3 {[%clk 0:03:01]}  Nc6 {[%clk 0:03:00]} 3. Bb5 {[%clk 0:03:02]}  Nf6 {[%clk 0:02:58]} 4. O-O {[%clk 0:03:00]}  Nxe4 {[%clk 0:02:57]} 5. Re1 {[%clk 0:02:58]}  Nd6 {[%clk 0:02:57]} 6. Bf1 {[%clk 0:02:59]}  Be7 {[%clk 0:02:54]} 7. Nc3 {[%clk 0:02:53]}  O-O {[%clk 0:02:50]} 8. d4 {[%clk 0:02:53]}  exd4 {[%clk 0:02:47]} 9. Nd5 {[%clk 0:02:53]}  Re8 {[%clk 0:02:25]} 10. Bf4 {[%clk 0:02:39]}  Bf8 {[%clk 0:02:10]} 11. Rxe8 {[%clk 0:02:38]}  Nxe8 {[%clk 0:02:10]} 12. Ng5 {[%clk 0:02:36]}  h6 {[%clk 0:01:15]} 13. Nxf7 {[%clk 0:02:35]}  Kxf7 {[%clk 0:01:03]} 14. Qh5+ {[%clk 0:01:58]}  g6 {[%clk 0:00:58]} 15. Qf3 {[%clk 0:01:43]}  Kg7 {[%clk 0:00:58]} 16. Bd3 {[%clk 0:01:39]}  d6 {[%clk 0:00:39]} 17. Qg3 {[%clk 0:01:29]}  g5 {[%clk 0:00:37]} 18. h4 {[%clk 0:01:29]}  g4 {[%clk 0:00:37]} 19. f3 {[%clk 0:01:20]}  Nf6 {[%clk 0:00:37]} 20. Nxf6 {[%clk 0:01:18]}  Qxf6 {[%clk 0:00:38]} 21. fxg4 {[%clk 0:01:18]}  Qe6 {[%clk 0:00:31]} 22. Bf5 {[%clk 0:01:08]}  Qf7 {[%clk 0:00:29]} 23. Bd3 {[%clk 0:00:51]}  Bd7 {[%clk 0:00:19]} 24. Rf1 {[%clk 0:00:51]}  Qd5 {[%clk 0:00:18]} 25. h5 {[%clk 0:00:41]}  Be7 {[%clk 0:00:18]} 26. Re1 {[%clk 0:00:33]}  Rf8 {[%clk 0:00:17]} 27. Be4 {[%clk 0:00:29]}  Qf7 {[%clk 0:00:17]} 28. Rf1 {[%clk 0:00:29]}  Qc4 {[%clk 0:00:15]} 29. Bd3 {[%clk 0:00:21]}  Qe6 {[%clk 0:00:14]} 30. g5 {[%clk 0:00:19]}  Qg4 {[%clk 0:00:12]} 31. gxh6+ {[%clk 0:00:18]}  Kh8 {[%clk 0:00:13]} 32. Qf2 {[%clk 0:00:05]}  Bg5 {[%clk 0:00:13]} 33. Be5+ {[%clk 0:00:05]}  dxe5 {[%clk 0:00:12]} 34. Qxf8# {[%clk 0:00:06]} 1-0


[Site "https://www.chess.com"]

[Event "Titled Tuesday Blitz May 9 Early 2023"]
[White "Jovic, Stanoje"]
[Black "Berezin, Viktor"]
[WhiteFideId "905020"]
[BlackFideId "14107872"]
[WhiteElo "2236"]
[BlackElo "2310"]
[Result "0-1"]
[Round "10"]
[TimeControl "180+2"]
[Date "2023.05.09"]
[WhiteClock "0:00:00"]
[BlackClock "0:00:12"]

1. c4 {[%clk 0:03:00]}  Nf6 {[%clk 0:02:57]} 2. g3 {[%clk 0:03:01]}  g6 {[%clk 0:02:57]} 3. Bg2 {[%clk 0:03:01]}  Bg7 {[%clk 0:02:58]} 4. Nc3 {[%clk 0:03:01]}  O-O {[%clk 0:02:59]} 5. Nf3 {[%clk 0:03:01]}  d6 {[%clk 0:02:59]} 6. O-O {[%clk 0:03:01]}  Nc6 {[%clk 0:02:58]} 7. Rb1 {[%clk 0:02:59]}  e5 {[%clk 0:02:54]} 8. b4 {[%clk 0:02:57]}  Nd4 {[%clk 0:02:43]} 9. Ne1 {[%clk 0:02:53]}  c6 {[%clk 0:02:38]} 10. e3 {[%clk 0:02:52]}  Ne6 {[%clk 0:02:33]} 11. d4 {[%clk 0:02:46]}  Qe7 {[%clk 0:02:27]} 12. d5 {[%clk 0:02:41]}  Ng5 {[%clk 0:02:23]} 13. dxc6 {[%clk 0:02:36]}  bxc6 {[%clk 0:02:23]} 14. Bxc6 {[%clk 0:02:36]}  Bb7 {[%clk 0:02:17]} 15. b5 {[%clk 0:02:21]}  Rac8 {[%clk 0:02:09]} 16. Nd5 {[%clk 0:02:18]}  Nxd5 {[%clk 0:02:05]} 17. cxd5 {[%clk 0:02:16]}  Ne4 {[%clk 0:01:58]} 18. Rb4 {[%clk 0:02:00]}  f5 {[%clk 0:01:47]} 19. Rxe4 {[%clk 0:01:58]}  fxe4 {[%clk 0:01:46]} 20. Qa4 {[%clk 0:01:57]}  a6 {[%clk 0:01:41]} 21. b6 {[%clk 0:01:44]}  Kh8 {[%clk 0:01:24]} 22. Ba3 {[%clk 0:01:36]}  Bxc6 {[%clk 0:01:16]} 23. dxc6 {[%clk 0:01:35]}  Qe8 {[%clk 0:01:17]} 24. Bxd6 {[%clk 0:01:27]}  Rf6 {[%clk 0:01:15]} 25. b7 {[%clk 0:01:19]}  Rxd6 {[%clk 0:01:07]} 26. bxc8=Q {[%clk 0:01:18]}  Qxc8 {[%clk 0:01:08]} 27. Qxe4 {[%clk 0:01:17]}  Qxc6 {[%clk 0:00:57]} 28. Qxc6 {[%clk 0:01:17]}  Rxc6 {[%clk 0:00:58]} 29. Nf3 {[%clk 0:01:16]}  h6 {[%clk 0:00:57]} 30. e4 {[%clk 0:01:03]}  Rc2 {[%clk 0:00:55]} 31. Rd1 {[%clk 0:01:02]}  Rxa2 {[%clk 0:00:49]} 32. Rd6 {[%clk 0:01:02]}  Kh7 {[%clk 0:00:48]} 33. Nh4 {[%clk 0:01:02]}  a5 {[%clk 0:00:47]} 34. Rxg6 {[%clk 0:00:57]}  a4 {[%clk 0:00:46]} 35. Ra6 {[%clk 0:00:57]}  a3 {[%clk 0:00:45]} 36. Nf5 {[%clk 0:00:57]}  Bf8 {[%clk 0:00:43]} 37. g4 {[%clk 0:00:51]}  Bc5 {[%clk 0:00:43]} 38. Rxh6+ {[%clk 0:00:48]}  Kg8 {[%clk 0:00:42]} 39. Ne3 {[%clk 0:00:39]}  Rd2 {[%clk 0:00:26]} 40. Ra6 {[%clk 0:00:30]}  a2 {[%clk 0:00:25]} 41. Nc4 {[%clk 0:00:17]}  Rxf2 {[%clk 0:00:20]} 42. Kh1 {[%clk 0:00:16]}  Bd4 {[%clk 0:00:18]} 43. h4 {[%clk 0:00:12]}  a1=Q+ {[%clk 0:00:17]} 44. Rxa1 {[%clk 0:00:11]}  Bxa1 {[%clk 0:00:18]} 45. Kg1 {[%clk 0:00:10]}  Bd4 {[%clk 0:00:18]} 46. Kh1 {[%clk 0:00:09]}  Rf4 {[%clk 0:00:17]} 47. Kg2 {[%clk 0:00:08]}  Rxg4+ {[%clk 0:00:17]} 48. Kh3 {[%clk 0:00:06]}  Rxe4 {[%clk 0:00:17]} 49. Nd6 {[%clk 0:00:06]}  Rf4 {[%clk 0:00:16]} 50. h5 {[%clk 0:00:04]}  Kh7 {[%clk 0:00:17]} 51. Kg3 {[%clk 0:00:04]}  Kh6 {[%clk 0:00:17]} 52. Nb5 {[%clk 0:00:03]}  Kxh5 {[%clk 0:00:16]} 53. Nc7 {[%clk 0:00:03]}  Rf6 {[%clk 0:00:14]} 54. Nd5 {[%clk 0:00:03]}  Rg6+ {[%clk 0:00:14]} 55. Kf3 {[%clk 0:00:03]}  Kg5 {[%clk 0:00:14]} 56. Ke4 {[%clk 0:00:03]}  Rg7 {[%clk 0:00:13]} 57. Nb6 {[%clk 0:00:00]}  Bxb6 {[%clk 0:00:12]} 0-1


[Site "https://www.chess.com"]